bitfinex-derivatives/quotes_BTCF0:USTF0_20250918
["timestamp","ask_amount","ask_price","bid_price","bid_amount"]
[1758197228140,0.04368583,117150.0,117140.0,0.70434272]
[1758197228544,0.02227583,117150.0,117140.0,1.03847408]
[1758197228734,0.02127583,117150.0,117140.0,0.78115236]
[1758197228935,0.08869614,117160.0,117150.0,0.03608]
[1758197229129,0.02141,117160.0,117150.0,0.37021136]
[1758197229331,0.02141,117160.0,117150.0,0.70434272]
[1758197229737,0.02141,117160.0,117150.0,0.78115236]
[1758197229936,0.36084,117170.0,117150.0,0.78115236]
[1758197230137,0.38225,117170.0,117160.0,0.70434272]
[1758197230337,0.38225,117170.0,117160.0,0.72156516]
[1758197230938,0.38050374,117170.0,117160.0,0.72156516]
[1758197231336,0.38350374,117170.0,117160.0,0.72256516]
[1758197231538,0.38650374,117170.0,117160.0,0.72256516]
[1758197234346,0.7340551,117170.0,117160.0,0.72256516]
[1758197237848,0.7340551,117170.0,117160.0,0.05430244]
[1758197238054,0.7340551,117170.0,117160.0,0.72256516]
[1758197243763,0.39992374,117170.0,117160.0,0.72256516]
[1758197244054,0.7340551,117170.0,117160.0,0.72256516]
[1758197248062,0.7340551,117170.0,117160.0,0.05430244]
[1758197248263,0.7340551,117170.0,117160.0,0.72256516]
[1758197249867,0.39992374,117170.0,117160.0,0.27691121]
[1758197254075,0.38650374,117170.0,117160.0,0.49951998]
[1758197255371,0.02741,117170.0,117160.0,0.86031998]
[1758197256467,0.02741,117170.0,117160.0,0.93712962]
[1758197261176,0.02741,117170.0,117160.0,0.86031998]
[1758197261876,0.02741,117170.0,117160.0,0.86893248]
[1758197262975,0.02741,117170.0,117160.0,0.86031998]
[1758197268576,0.02741,117170.0,117160.0,0.93712962]
[1758197270683,0.04693018,117170.0,117160.0,0.93712962]
[1758197271578,0.04693018,117170.0,117160.0,0.86031998]
[1758197277194,0.04693018,117170.0,117160.0,0.93712962]
[1758197277395,0.64369895,117170.0,117160.0,0.04043244]
[1758197277587,0.89369895,117170.0,117160.0,0.04043244]
[1758197281687,0.67109018,117170.0,117160.0,0.04043244]
[1758197281893,0.89369895,117170.0,117160.0,0.04043244]
[1758197292497,0.89369895,117170.0,117160.0,0.01822244]
[1758197292702,0.64369895,117170.0,117160.0,0.01822244]
[1758197293605,0.64369895,117170.0,117160.0,0.001]
[1758197293606,0.89369895,117170.0,117160.0,0.001]
[1758197293800,1.11630772,117170.0,117160.0,0.001]
[1758197294105,0.89369895,117170.0,117160.0,0.001]
[1758197294701,1.11630772,117170.0,117160.0,0.001]
[1758197294904,1.13818625,117170.0,117160.0,0.001]
[1758197295100,0.03498,117160.0,117150.0,0.0002]
[1758197295305,0.03498,117150.0,117140.0,0.0002]
[1758197295505,0.03498,117150.0,117130.0,0.03982649]
[1758197295506,0.03498,117140.0,117130.0,0.03982649]
[1758197295706,0.62673025,117140.0,117130.0,0.03962649]
[1758197296005,0.62673025,117140.0,117130.0,0.26223526]
[1758197296006,0.61838877,117140.0,117130.0,0.26223526]
[1758197296807,0.62678005,117140.0,117130.0,0.03962649]
[1758197299303,0.62678005,117140.0,117130.0,0.26223526]
[1758197299610,0.6943371,117140.0,117130.0,0.26223526]
[1758197299803,0.91694587,117140.0,117130.0,0.03962649]
[1758197300198,0.6943371,117140.0,117130.0,0.03962649]
[1758197300403,0.6943371,117140.0,117130.0,0.02252]
[1758197300601,0.6943371,117140.0,117120.0,0.31311841]
[1758197300602,0.03498,117130.0,117120.0,0.32213841]
[1758197300803,0.61838877,117130.0,117120.0,0.02252]
[1758197301809,0.61838877,117130.0,117120.0,0.02352]
[1758197302310,0.61838877,117130.0,117120.0,0.02452]
[1758197303312,0.39578,117130.0,117120.0,0.02452]
[1758197303505,0.61838877,117130.0,117120.0,0.02452]
[1758197309014,0.61838877,117130.0,117120.0,0.02352]
[1758197309411,0.61838877,117130.0,117120.0,0.02252]
[1758197311711,0.72995832,117130.0,117120.0,0.35669832]
[1758197318223,0.72995832,117130.0,117120.0,0.02252]
[1758197318422,0.72995832,117130.0,117120.0,0.35669832]
[1758197320922,0.72995832,117130.0,117120.0,0.02252]
[1758197321125,0.72995832,117130.0,117120.0,0.35669832]
[1758197321620,0.72995832,117130.0,117120.0,0.02252]
[1758197321825,0.72995832,117130.0,117120.0,0.35669832]
[1758197325326,0.72995832,117130.0,117120.0,0.69087664]
[1758197325526,0.72995832,117130.0,117120.0,0.70385664]
[1758197325828,0.39578,117130.0,117120.0,0.70385664]
[1758197326124,0.38203,117130.0,117120.0,0.70385664]
[1758197326925,0.71620832,117130.0,117120.0,0.70385664]
[1758197327125,0.72887832,117130.0,117120.0,0.70385664]
[1758197327924,0.71620832,117130.0,117120.0,0.70385664]
[1758197328526,0.38203,117130.0,117120.0,0.70385664]
[1758197328826,0.71620832,117130.0,117120.0,0.70385664]
[1758197331230,0.72887832,117130.0,117120.0,0.70385664]
[1758197333636,0.38203,117130.0,117120.0,0.70385664]
[1758197333834,0.71620832,117130.0,117120.0,0.70385664]
[1758197338543,0.72973832,117130.0,117120.0,0.70385664]
[1758197338931,0.39556,117130.0,117120.0,0.70385664]
[1758197339133,0.72973832,117130.0,117120.0,0.70385664]
[1758197340137,0.39556,117130.0,117120.0,0.70385664]
[1758197340336,0.72973832,117130.0,117120.0,0.70385664]
[1758197340840,0.36893832,117130.0,117120.0,0.70385664]
[1758197341139,0.36893832,117130.0,117120.0,0.0355]
[1758197341337,0.36893832,117130.0,117120.0,0.70385664]
[1758197349149,0.72973832,117130.0,117120.0,0.70385664]
[1758197349751,0.72973832,117130.0,117120.0,0.36967832]
[1758197352759,0.72973832,117130.0,117120.0,0.0355]
[1758197352961,0.72973832,117130.0,117120.0,0.35669832]
[1758197353358,0.73073832,117130.0,117120.0,0.35669832]
[1758197353660,0.39656,117130.0,117120.0,0.35669832]
[1758197353860,0.73173832,117130.0,117120.0,0.35669832]
[1758197354060,0.39756,117130.0,117120.0,0.02252]
[1758197354264,0.73173832,117130.0,117120.0,0.35669832]
[1758197362064,0.39756,117130.0,117120.0,0.43350796]
[1758197362263,0.73173832,117130.0,117120.0,0.43350796]
[1758197362566,0.73173832,117130.0,117120.0,0.35669832]
[1758197367070,0.73173832,117130.0,117120.0,0.02252]
[1758197367568,0.73173832,117130.0,117120.0,0.35669832]
[1758197369472,0.73173832,117130.0,117120.0,0.02252]
[1758197369960,0.73173832,117130.0,117120.0,0.35669832]
[1758197373771,0.62033285,117130.0,117120.0,0.24529285]
[1758197377572,0.25953285,117130.0,117120.0,0.24529285]
[1758197377774,0.62033285,117130.0,117120.0,0.24529285]
[1758197378972,0.39756,117130.0,117120.0,0.24529285]
[1758197379174,0.62033285,117130.0,117120.0,0.24529285]
[1758197384372,0.62033285,117130.0,117120.0,0.32210249]
[1758197384775,0.62033285,117130.0,117120.0,0.09932964]
[1758197385078,0.62033285,117130.0,117120.0,0.24529285]
[1758197389580,0.62033285,117130.0,117120.0,0.02252]
[1758197389773,0.62033285,117130.0,117120.0,0.24529285]
[1758197389969,0.62033285,117130.0,117120.0,0.09932964]
[1758197390174,0.62033285,117130.0,117120.0,0.24529285]
[1758197390677,0.62033285,117130.0,117120.0,0.02252]
[1758197390977,0.62033285,117130.0,117120.0,0.24529285]
[1758197391376,0.62033285,117130.0,117120.0,0.32210249]
[1758197396588,0.62033285,117130.0,117120.0,0.09932964]
[1758197396790,0.62033285,117130.0,117120.0,0.32210249]
[1758197398189,0.62033285,117130.0,117120.0,0.24529285]
[1758197398487,0.8431057,117130.0,117120.0,0.07680964]
[1758197398687,0.03607,117120.0,117110.0,0.07700964]
[1758197398983,0.03607,117110.0,117100.0,0.33933643]
[1758197399183,0.25884285,117110.0,117100.0,0.33913643]
[1758197400188,0.25884285,117110.0,117100.0,0.11636358]
[1758197400389,0.25884285,117110.0,117100.0,0.33913643]
[1758197400890,0.25884285,117110.0,117100.0,0.34013643]
[1758197401287,0.25884285,117110.0,117100.0,0.04055394]
[1758197401795,0.61964285,117110.0,117100.0,0.01907394]
[1758197402086,0.61964285,117110.0,117100.0,0.09588358]
[1758197402285,0.61964285,117110.0,117100.0,0.01907394]
[1758197404791,0.61964285,117110.0,117100.0,0.01807394]
[1758197405593,0.61964285,117110.0,117100.0,0.01707394]
[1758197405792,0.03702,117100.0,117090.0,0.02336]
[1758197406091,0.62059285,117100.0,117090.0,0.02316]
[1758197406487,0.68878076,117100.0,117090.0,0.02316]
[1758197406790,0.46600791,117100.0,117090.0,0.24593285]
[1758197407086,0.47456129,117100.0,117090.0,0.24593285]
[1758197407491,0.47456129,117100.0,117090.0,0.24693285]
[1758197407891,0.47456129,117100.0,117090.0,0.24793285]
[1758197408096,0.46600791,117100.0,117090.0,0.24793285]
[1758197409494,0.46600791,117100.0,117090.0,0.26054285]
[1758197412792,0.46600791,117100.0,117090.0,0.03777]
[1758197413190,0.46600791,117100.0,117090.0,0.26054285]
[1758197415887,0.46600791,117100.0,117090.0,0.24793285]
[1758197416288,0.68878076,117100.0,117090.0,0.24793285]
[1758197416599,0.68878076,117100.0,117090.0,0.02516]
[1758197416799,0.68878076,117100.0,117090.0,0.24793285]
[1758197420105,0.68878076,117100.0,117090.0,0.02516]
[1758197420300,0.68878076,117100.0,117090.0,0.002]
[1758197420700,0.68878076,117100.0,117090.0,0.02516]
[1758197423209,0.68878076,117100.0,117090.0,0.24793285]
[1758197425608,0.68878076,117100.0,117090.0,0.02516]
[1758197426008,0.68878076,117100.0,117090.0,0.24793285]
[1758197429207,0.68878076,117100.0,117090.0,0.02516]
[1758197429411,0.68878076,117100.0,117090.0,0.24793285]
[1758197429912,0.46600791,117100.0,117090.0,0.24793285]
[1758197430097,0.68878076,117100.0,117090.0,0.24793285]
[1758197433115,0.68878076,117100.0,117090.0,0.02516]
[1758197433417,0.68878076,117100.0,117090.0,0.24793285]
[1758197433818,0.80032754,117100.0,117090.0,0.35947963]
[1758197435212,0.80032754,117100.0,117090.0,0.02516]
[1758197435410,0.80032754,117100.0,117090.0,0.35947963]
[1758197435610,0.80032754,117100.0,117090.0,0.10196964]
[1758197435810,0.80032754,117100.0,117090.0,0.43628927]
[1758197437121,0.80032754,117100.0,117090.0,0.35947963]
[1758197437716,0.80032754,117100.0,117090.0,0.02516]
[1758197437917,0.80032754,117100.0,117090.0,0.35947963]
[1758197438722,1.13464717,117100.0,117090.0,0.35947963]
[1758197440616,0.80032754,117100.0,117090.0,0.35947963]
[1758197443712,0.80032754,117100.0,117090.0,0.37314963]
[1758197445719,0.46600791,117100.0,117090.0,0.37314963]
[1758197445917,0.80032754,117100.0,117090.0,0.37314963]
[1758197447121,0.46600791,117100.0,117090.0,0.37314963]
[1758197447326,0.80032754,117100.0,117090.0,0.37314963]
[1758197447924,0.80032754,117100.0,117090.0,0.44995927]
[1758197449826,0.80032754,117100.0,117090.0,0.43628927]
[1758197450519,0.80032754,117100.0,117090.0,0.35947963]
[1758197450720,0.80032754,117100.0,117090.0,0.43628927]
[1758197451324,1.7189668,117100.0,117090.0,0.002]
[1758197451816,1.38464717,117100.0,117090.0,0.002]
[1758197454426,1.7189668,117100.0,117090.0,0.002]
[1758197454627,1.38464717,117100.0,117090.0,0.002]
[1758197456326,1.7189668,117100.0,117090.0,0.002]
[1758197458428,1.38464717,117100.0,117090.0,0.002]
[1758197460329,1.7189668,117100.0,117090.0,0.002]
[1758197462234,1.4689668,117100.0,117090.0,0.002]
[1758197465740,1.49086493,117100.0,117090.0,0.002]
[1758197469244,1.4689668,117100.0,117090.0,0.002]
[1758197470146,1.49085751,117100.0,117090.0,0.002]
[1758197472549,1.13005751,117100.0,117090.0,0.002]
[1758197472843,1.85165751,117100.0,117090.0,0.002]
[1758197474543,1.49085751,117100.0,117090.0,0.002]
[1758197474847,1.85165751,117100.0,117090.0,0.002]
[1758197481052,0.01307,117090.0,117080.0,0.0002]
[1758197481246,0.03476,117080.0,117070.0,0.0002]
[1758197481450,0.03476,117070.0,117060.0,0.02182]
[1758197481648,0.36907963,117070.0,117060.0,0.02162]
[1758197482147,0.70339926,117070.0,117060.0,0.02162]
[1758197482356,1.0841423,117070.0,117060.0,0.02162]
[1758197482650,1.0841423,117070.0,117060.0,0.02762]
[1758197483648,1.0851423,117070.0,117060.0,0.03062]
[1758197484750,1.0851423,117070.0,117060.0,0.005]
[1758197485551,1.0851423,117070.0,117060.0,0.02662]
[1758197487059,1.0851423,117070.0,117060.0,0.005]
[1758197489360,1.0851423,117070.0,117060.0,0.02662]
[1758197490959,0.75082267,117070.0,117060.0,0.02662]
[1758197491660,1.0851423,117070.0,117060.0,0.02662]
[1758197491857,0.75082267,117070.0,117060.0,0.02662]
[1758197493762,0.63952977,117070.0,117060.0,0.02662]
[1758197495560,0.41650304,117070.0,117060.0,0.02662]
[1758197495763,0.63952977,117070.0,117060.0,0.02662]
[1758197495959,0.63952977,117070.0,117060.0,0.005]
[1758197496362,0.63952977,117070.0,117060.0,0.02794]
[1758197497358,0.8625565,117070.0,117060.0,0.005]
[1758197501263,0.41650304,117070.0,117060.0,0.005]
[1758197501563,0.8625565,117070.0,117060.0,0.005]
[1758197510172,0.88443195,117070.0,117060.0,0.005]
[1758197516875,0.88443195,117070.0,117060.0,0.00281]
[1758197517376,0.03558,117050.0,117040.0,0.04882544]
[1758197517770,0.24476673,117050.0,117040.0,0.06259544]
[1758197518174,0.24476673,117050.0,117040.0,0.05980544]
[1758197518572,0.02174,117050.0,117040.0,0.05980544]
[1758197518879,0.24476673,117050.0,117040.0,0.06780544]
[1758197519279,0.24576673,117050.0,117040.0,0.06980544]
[1758197519984,0.02274,117050.0,117040.0,0.54283217]
[1758197520175,0.24576673,117050.0,117040.0,0.90163217]
[1758197520579,0.02274,117050.0,117040.0,0.90163217]
[1758197521184,0.09151037,117050.0,117040.0,0.90163217]
[1758197521489,0.02274,117050.0,117040.0,0.90163217]
[1758197521879,0.02274,117050.0,117040.0,0.89863217]
[1758197522483,0.001,117050.0,117040.0,1.1216589]
[1758197523289,0.0232,117050.0,117040.0,0.89863217]
[1758197524187,0.0232,117050.0,117040.0,0.98403557]
[1758197524985,0.001,117050.0,117040.0,0.98403557]
[1758197525186,0.001,117050.0,117040.0,1.2070623]
[1758197526593,0.001,117050.0,117040.0,1.5270623]
[1758197526886,0.001,117050.0,117040.0,1.28387194]
[1758197527688,0.001,117050.0,117040.0,1.31458651]
[1758197529493,0.001,117050.0,117040.0,1.65458651]
[1758197531683,0.001,117050.0,117040.0,1.87761324]
[1758197531889,0.0001,117060.0,117050.0,0.1206061]
[1758197532089,0.06719208,117070.0,117060.0,0.1205988]
[1758197532289,0.60612673,117080.0,117070.0,0.03521]
[1758197532486,0.60602673,117080.0,117070.0,0.03521]
[1758197532787,0.383,117080.0,117070.0,0.25823673]
[1758197532988,0.0222,117080.0,117070.0,0.61903673]
[1758197533191,0.72552161,117090.0,117080.0,0.03521]
[1758197533395,0.72542161,117090.0,117080.0,0.25823673]
[1758197533588,0.36462161,117090.0,117080.0,0.61903673]
[1758197534493,0.36562161,117090.0,117080.0,0.61903673]
[1758197534794,0.43488076,117090.0,117080.0,0.61903673]
[1758197534992,0.04548441,117090.0,117080.0,0.84306346]
[1758197535589,0.003,117090.0,117080.0,1.68146449]
[1758197535793,0.0001,117100.0,117090.0,0.03521]
[1758197536093,0.0001,117110.0,117100.0,0.03521]
[1758197536294,0.0223,117120.0,117110.0,0.03521]
[1758197536496,0.09183045,117120.0,117110.0,0.61903673]
[1758197536691,0.0222,117120.0,117110.0,0.61903673]
[1758197536891,0.03059671,117120.0,117110.0,0.61903673]
[1758197537699,0.03459671,117120.0,117110.0,0.61903673]
[1758197539101,0.03459671,117120.0,117110.0,0.63644243]
[1758197539601,0.03259671,117120.0,117110.0,0.63644243]
[1758197539893,0.004,117120.0,117110.0,0.86046916]
[1758197540098,0.003,117120.0,117110.0,1.14046916]
[1758197540504,0.002,117120.0,117110.0,1.18817538]
[1758197541198,0.002,117120.0,117110.0,1.43817538]
[1758197541600,0.002,117120.0,117110.0,1.11817538]
[1758197541898,0.002,117120.0,117110.0,2.04655451]
[1758197542090,0.002,117120.0,117110.0,1.82352778]
[1758197542292,0.002,117120.0,117110.0,1.53352778]
[1758197542693,0.002,117120.0,117110.0,1.96120211]
[1758197543000,0.002,117120.0,117110.0,2.04655451]
[1758197543196,0.001,117120.0,117110.0,2.04655451]
[1758197544297,0.0001,117130.0,117120.0,0.03521]
[1758197544503,0.0001,117140.0,117130.0,0.03521]
[1758197544704,0.40326026,117160.0,117140.0,0.03521]
[1758197544705,0.0223,117150.0,117140.0,0.03521]
[1758197544901,0.0222,117150.0,117140.0,0.84206346]
[1758197545497,0.06719502,117160.0,117140.0,0.84206346]
[1758197545697,0.08929502,117160.0,117150.0,0.61903673]
[1758197546398,0.0222,117160.0,117150.0,0.61903673]
[1758197546905,0.0252,117160.0,117150.0,0.61903673]
[1758197547399,0.0252,117160.0,117150.0,0.62003673]
[1758197547400,0.0272,117160.0,117150.0,0.62003673]
[1758197547602,0.004,117160.0,117150.0,0.84306346]
[1758197547803,0.0262,117160.0,117150.0,0.62003673]
[1758197548002,0.0262,117160.0,117150.0,0.84306346]
[1758197549208,0.0262,117160.0,117150.0,0.62003673]
[1758197552712,0.0262,117160.0,117150.0,0.84306346]
[1758197554408,0.004,117160.0,117150.0,0.84306346]
[1758197555812,0.004,117160.0,117150.0,1.06461838]
[1758197565218,0.004,117160.0,117150.0,1.80374597]
[1758197565420,0.004,117160.0,117150.0,1.06461838]
[1758197566322,0.004,117160.0,117150.0,1.39842257]
[1758197567424,0.004,117160.0,117150.0,2.03374597]
[1758197567820,0.004,117160.0,117150.0,1.73374597]
[1758197568324,0.004,117160.0,117150.0,1.64842257]
[1758197570523,0.004,117160.0,117150.0,1.73374627]
[1758197570726,0.004,117160.0,117150.0,2.06374627]
[1758197572730,0.004,117160.0,117150.0,1.81374627]
[1758197572925,0.0013094,117160.0,117150.0,1.81374627]
[1758197575730,0.0013094,117160.0,117150.0,1.88374627]
[1758197578236,0.0013094,117160.0,117150.0,1.94509908]
[1758197580039,0.0013094,117160.0,117150.0,1.61509908]
[1758197581840,0.0013094,117160.0,117150.0,1.52977538]
[1758197582233,0.0013094,117160.0,117150.0,1.46842257]
[1758197585443,0.0013094,117160.0,117150.0,1.54517826]
[1758197586136,0.0013094,117160.0,117150.0,1.46842257]
[1758197586338,0.0013094,117160.0,117150.0,1.54517826]
[1758197586941,0.0013094,117160.0,117150.0,1.46842257]
[1758197587143,0.0013094,117160.0,117150.0,1.06461838]
[1758197587443,0.0013094,117160.0,117150.0,1.12600186]
[1758197587837,0.0013094,117160.0,117150.0,1.45980605]
[1758197588038,0.0013094,117160.0,117150.0,1.12600186]
[1758197588338,0.0013094,117160.0,117150.0,1.39842257]
[1758197589444,0.0013094,117160.0,117150.0,1.06461838]
[1758197590143,0.0013094,117160.0,117150.0,1.14137407]
[1758197591250,0.0013094,117160.0,117150.0,1.47517826]
[1758197591547,0.0013094,117160.0,117150.0,1.77374637]
[1758197591747,0.0013094,117160.0,117150.0,1.88127058]
[1758197592141,0.0002,117170.0,117160.0,1.03662257]
[1758197592345,0.0001,117170.0,117160.0,1.39742257]
[1758197593550,0.0031,117170.0,117160.0,1.39842257]
[1758197593749,0.0061,117170.0,117160.0,1.39842257]
[1758197594149,0.0031,117170.0,117160.0,1.47418176]
[1758197594345,0.0001,117170.0,117160.0,1.39742257]
[1758197594548,0.0001,117170.0,117160.0,1.47418176]
[1758197595943,0.0001,117170.0,117160.0,1.4825217]
[1758197596453,0.0001,117170.0,117160.0,1.40576251]
[1758197598549,0.0001,117170.0,117160.0,1.51328672]
[1758197599249,0.0001,117180.0,117160.0,1.51328672]
[1758197599449,0.02238,117180.0,117170.0,0.72981419]
[1758197599947,0.04266825,117190.0,117180.0,0.01277]
[1758197600251,0.04256825,117190.0,117180.0,0.43043424]
[1758197601152,0.04456825,117190.0,117180.0,0.43043424]
[1758197602756,0.04656825,117190.0,117180.0,0.43143424]
[1758197603856,0.04656825,117190.0,117180.0,0.76523843]
[1758197607656,0.004,117190.0,117180.0,1.64842257]
[1758197607851,0.00014,117200.0,117190.0,0.03521]
[1758197608046,0.00014,117200.0,117190.0,1.12502805]
[1758197608047,4e-05,117200.0,117190.0,1.12502805]
[1758197608455,4e-05,117200.0,117190.0,1.21032295]
[1758197608656,4e-05,117200.0,117190.0,1.73271747]
[1758197608853,4e-05,117200.0,117190.0,1.39891328]
[1758197609054,4e-05,117200.0,117190.0,1.46710341]
[1758197609253,0.00204,117200.0,117190.0,1.46710341]
[1758197609455,0.00204,117200.0,117190.0,1.52842885]
[1758197610050,4e-05,117200.0,117190.0,1.52842885]
[1758197610251,4e-05,117200.0,117190.0,1.46710341]
[1758197611253,4e-05,117200.0,117190.0,1.52838116]
[1758197613854,0.70738419,117240.0,117190.0,1.52838116]
[1758197613855,0.37361,117240.0,117210.0,0.01322]
[1758197614158,0.39587,117240.0,117230.0,0.36859419]
[1758197615059,0.39587,117240.0,117230.0,0.70239838]
[1758197615261,0.39587,117240.0,117230.0,0.36859419]
[1758197615462,0.38306,117240.0,117230.0,0.70239838]
[1758197615862,0.38706,117240.0,117230.0,0.2570874]
[1758197616061,0.39106,117240.0,117230.0,0.2570874]
[1758197616763,0.38806,117240.0,117230.0,0.2570874]
[1758197616952,0.38606,117240.0,117230.0,0.2570874]
[1758197618564,0.02526,117240.0,117230.0,0.2570874]
[1758197618862,0.02536,117240.0,117230.0,0.2570874]
[1758197620161,4e-05,117250.0,117230.0,1.8424822]
[1758197620359,0.0223,117250.0,117240.0,0.8401848]
[1758197621060,0.0223,117250.0,117240.0,0.85740267]
[1758197621866,4e-05,117250.0,117240.0,0.85740267]
[1758197622366,0.0233,117250.0,117240.0,0.85740267]
[1758197622759,0.0253,117250.0,117240.0,0.85740267]
[1758197623057,0.0253,117250.0,117240.0,0.92436324]
[1758197625063,0.0253,117250.0,117240.0,0.47976844]
[1758197625258,0.0253,117250.0,117240.0,0.92436324]
[1758197625860,0.0253,117250.0,117240.0,1.14666064]
[1758197625861,0.00304,117250.0,117240.0,1.14666064]
[1758197626070,0.00304,117250.0,117240.0,1.23191964]
[1758197627166,0.00104,117250.0,117240.0,1.23191964]
[1758197628468,0.00104,117250.0,117240.0,0.56502744]
[1758197628674,0.00104,117250.0,117240.0,1.23191964]
[1758197629959,0.00104,117250.0,117240.0,0.92436324]
[1758197629960,0.0233,117250.0,117240.0,0.92436324]
[1758197633269,0.0233,117250.0,117240.0,0.47976844]
[1758197633475,0.28611,117250.0,117240.0,0.03878787]
[1758197633670,0.28611,117250.0,117240.0,0.2438674]
[1758197633868,0.00104,117250.0,117240.0,0.4793848]
[1758197634174,0.00104,117250.0,117240.0,1.1477415]
[1758197636276,0.00104,117250.0,117240.0,1.2146134]
[1758197638274,0.0001,117270.0,117260.0,0.03672]
[1758197638574,0.38229,117280.0,117270.0,0.03672]
[1758197638774,0.38229,117280.0,117270.0,0.2590174]
[1758197638974,0.38239,117280.0,117270.0,0.2590174]
[1758197640176,0.38539,117280.0,117270.0,0.2590174]
[1758197640371,0.02459,117280.0,117270.0,0.4813148]
[1758197640873,0.0031,117280.0,117270.0,0.4813148]
[1758197641177,0.0031,117280.0,117270.0,0.9273526]
[1758197641376,0.0031,117280.0,117270.0,1.39965]
[1758197641576,0.0031,117280.0,117270.0,1.1773526]
[1758197641778,0.0061,117280.0,117270.0,1.1773526]
[1758197642177,0.0051,117280.0,117270.0,1.1773526]
[1758197642480,0.0021,117280.0,117270.0,1.0921148]
[1758197643570,0.0021,117280.0,117270.0,0.64752]
[1758197643769,0.02333,117280.0,117270.0,1.0921148]
[1758197644477,0.0021,117280.0,117270.0,1.0921148]
[1758197646272,0.36094,117300.0,117290.0,0.03444]
[1758197646466,0.38207,117300.0,117290.0,0.2567374]
[1758197648172,0.39531,117300.0,117290.0,0.02173]
[1758197648372,0.64531,117300.0,117290.0,0.2440274]
[1758197648572,0.64831,117300.0,117290.0,0.2440274]
[1758197648769,0.64831,117300.0,117290.0,0.03444]
[1758197649078,0.63807,117300.0,117290.0,0.2567374]
[1758197652880,0.00604,117300.0,117290.0,1.3121322]
[1758197653077,0.00604,117300.0,117290.0,1.0898348]
[1758197654382,0.00604,117300.0,117290.0,0.8675374]
[1758197654583,0.02727,117300.0,117290.0,0.8675374]
[1758197654975,0.02427,117300.0,117290.0,0.8675374]
[1758197655169,0.02627,117300.0,117290.0,0.8675374]
[1758197655478,0.02527,117300.0,117290.0,0.6175374]
[1758197658980,0.02527,117300.0,117290.0,0.2567374]
[1758197659187,0.39931,117300.0,117290.0,0.2567374]
[1758197660187,0.6216074,117300.0,117290.0,0.2440274]
[1758197660387,0.8716074,117300.0,117290.0,0.2440274]
[1758197660780,0.64931,117300.0,117290.0,0.2440274]
[1758197661576,0.8716074,117300.0,117290.0,0.02173]
[1758197662181,0.64931,117300.0,117290.0,0.02173]
[1758197662383,0.8716074,117300.0,117290.0,0.02173]
[1758197662586,0.03447,117290.0,117280.0,0.2440274]
[1758197664487,0.03547,117290.0,117280.0,0.2440274]
[1758197664687,0.8685674,117290.0,117280.0,0.02173]
[1758197664888,0.8686674,117290.0,117280.0,0.02173]
[1758197665091,0.03447,117280.0,117270.0,0.26146851]
[1758197665280,0.03457,117280.0,117270.0,0.26136851]
[1758197665486,0.2568674,117280.0,117270.0,0.26136851]
[1758197665789,0.6176674,117280.0,117270.0,0.03907111]
[1758197666588,0.39537,117280.0,117270.0,0.03907111]
[1758197666783,0.8676674,117280.0,117270.0,0.03907111]
[1758197666990,0.38213,117280.0,117270.0,0.27407851]
[1758197667592,0.39537,117280.0,117270.0,0.27407851]
[1758197667785,0.39537,117280.0,117270.0,0.26136851]
[1758197667987,0.64537,117280.0,117270.0,0.26136851]
[1758197668294,0.64537,117280.0,117270.0,0.2440274]
[1758197670289,0.8676674,117280.0,117270.0,0.02173]
[1758197670986,0.03567,117270.0,117260.0,0.02244]
[1758197671292,0.39657,117270.0,117260.0,0.2446374]
[1758197671684,0.4050634,117270.0,117260.0,0.2446374]
[1758197672193,0.4050634,117270.0,117260.0,0.2456374]
[1758197672595,0.3838,117270.0,117260.0,0.4818648]
[1758197672794,0.0001,117270.0,117260.0,1.3726648]
[1758197673093,0.01287,117290.0,117280.0,0.1157205]
[1758197673094,0.0001,117290.0,117280.0,0.1157205]
[1758197673283,0.36084,117300.0,117290.0,0.03505]
[1758197673487,0.36084,117300.0,117290.0,0.4796448]
[1758197675199,0.36084,117300.0,117290.0,0.4806448]
[1758197675399,0.38374,117300.0,117290.0,0.4806448]
[1758197675994,0.36084,117300.0,117290.0,0.4806448]
[1758197676200,4e-05,117300.0,117290.0,0.90363296]
[1758197676394,4e-05,117300.0,117290.0,1.23885616]
[1758197677797,4e-05,117300.0,117290.0,1.41871552]
[1758197679398,4e-05,117300.0,117290.0,1.16871552]
[1758197682701,4e-05,117300.0,117290.0,1.08349232]
[1758197683088,0.02294,117300.0,117290.0,0.77126524]
[1758197684498,0.02294,117300.0,117290.0,1.16871552]
[1758197684700,4e-05,117300.0,117290.0,1.16871552]
[1758197685202,4e-05,117300.0,117290.0,1.08349232]
[1758197686903,4e-05,117300.0,117290.0,0.77126524]
[1758197687100,0.03571,117300.0,117290.0,0.77126524]
[1758197687396,0.03571,117300.0,117290.0,0.33656708]
[1758197692709,0.0001,117320.0,117290.0,1.54959416]
[1758197692898,0.37367,117330.0,117310.0,0.70807708]
[1758197693209,0.0001,117320.0,117310.0,0.39585]
[1758197693406,0.0229,117320.0,117310.0,0.39585]
[1758197693607,0.64647,117320.0,117310.0,0.02234]
[1758197693807,0.66645754,117320.0,117310.0,0.02234]
[1758197694702,0.66645754,117320.0,117310.0,0.33456708]
[1758197694902,0.66745754,117320.0,117310.0,0.33456708]
[1758197695612,0.66845754,117320.0,117310.0,0.33456708]
[1758197696110,0.66745754,117320.0,117310.0,0.33456708]
[1758197696314,0.66845754,117320.0,117310.0,0.33456708]
[1758197696610,0.66845754,117320.0,117310.0,0.02234]
[1758197697910,1.00155256,117320.0,117310.0,0.35543502]
[1758197698711,0.66845754,117320.0,117310.0,0.35543502]
[1758197698911,1.00155256,117320.0,117310.0,0.35543502]
[1758197704616,0.75155256,117320.0,117310.0,0.33309502]
[1758197706913,0.03568,117310.0,117300.0,0.41698318]
[1758197707114,0.72957502,117310.0,117300.0,0.06118816]
[1758197707413,0.72957502,117310.0,117300.0,0.41688318]
[1758197707609,0.72957502,117310.0,117300.0,0.35569502]
[1758197708316,0.3608,117310.0,117300.0,1.18309471]
[1758197708614,0.0011,117320.0,117310.0,0.00647]
[1758197708809,0.001,117320.0,117310.0,0.88495018]
[1758197709010,0.001,117320.0,117310.0,1.13495018]
[1758197709205,0.02217,117320.0,117310.0,0.79974148]
[1758197709411,0.03568,117320.0,117310.0,0.77780218]
[1758197710418,0.03358769,117330.0,117310.0,1.4525752]
[1758197710619,0.05575769,117330.0,117320.0,1.1108972]
[1758197710916,0.05565769,117330.0,117320.0,1.1108972]